fUST/lending_fUST_20240615
["ID","MTS","AMOUNT","RATE_DAILY","PERIOD"]
[329578859,1718455854875,-500.0,0.00016438,2]
[329578860,1718455854912,-500.0,0.00016438,2]
[329578861,1718455854940,-502.48563397,0.00016438,2]
[329578862,1718455854976,-500.0,0.00016438,2]
[329578863,1718455854994,-500.0,0.00016438,2]
[329578864,1718455855015,-500.0,0.00016438,2]
[329578865,1718455855027,-394.09891748,0.00016438,2]
[329578866,1718455855679,-3606.8306956,7.36e-05,2]
[329578867,1718455855709,-105.90108252,0.00016438,2]
[329578868,1718455855724,-262.5165486,0.00016438,2]
[329578869,1718455855739,-500.0,0.00016438,2]
[329578870,1718455855764,-500.0,0.00016438,2]
[329578871,1718455855783,-500.0,0.00016438,2]
[329578872,1718455855804,-500.0,0.00016438,2]
[329578873,1718455855833,-516.76449459,0.00016438,2]
[329578874,1718455855857,-500.0,0.00016438,2]
[329578875,1718455855875,-367.26597588,0.00016438,2]
[329578876,1718455855892,-132.73402412,0.00016438,2]
[329578877,1718455855904,-500.0,0.00016438,2]
[329578878,1718455855929,-500.0,0.00016438,2]
[329578879,1718455855960,-269.71597588,0.00016438,2]
[329578880,1718455903993,155.0,7.287e-05,2]
[329578881,1718456181161,-317.7123937,7.351e-05,2]
[329578882,1718456181210,-282.68764268,7.357e-05,2]
[329578883,1718456181247,-1282.86128703,7.358e-05,2]
[329578884,1718456182684,-928.09761947,7.359e-05,2]
[329578885,1718456182733,-262.27225802,7.359e-05,2]
[329578886,1718456182800,-300.0,7.359e-05,2]
[329578887,1718456182850,-9596.22206697,7.36e-05,2]
[329578888,1718456182896,-19318.48895312,7.361e-05,2]
[329578889,1718456182932,-292.15791119,7.361e-05,2]
[329578890,1718456182967,-8006.38040322,7.488e-05,2]
[329578891,1718456183005,-3616.33764897,8e-05,2]
[329578892,1718456183064,-2324.42431222,9.248e-05,2]
[329578893,1718456183109,-3606.8306956,9.249e-05,2]
[329578905,1718456865950,-262.27225802,7.774e-05,2]
[329578906,1718456865983,-150.98553735,7.775e-05,2]
[329578907,1718456866066,-1502.45547554,7.851e-05,2]
[329578908,1718456866151,-509.2553987,7.852e-05,2]
[329578909,1718456866189,-242.57106669,7.852e-05,2]
[329578910,1718456866266,-42133.2060422,7.853e-05,2]
[329578911,1718456866331,-15769.7315179,7.854e-05,2]
[329578912,1718456866371,-157.84341236,8.432e-05,2]
[329578913,1718456866400,-1443.06916914,8.432e-05,2]
[329578914,1718456866446,-1282.86128703,8.433e-05,2]
[329578915,1718456866480,-686.86985004,8.434e-05,2]
[329578916,1718456866513,-300.0,8.434e-05,2]
[329578917,1718456866548,-300.0,8.434e-05,2]
[329578918,1718456866608,-956.2203204,8.436e-05,2]
[329578919,1718456870094,5860.252719,7.885e-05,2]
[329578928,1718456950688,-456.30003192,9.141e-05,2]
[329578929,1718456950750,-251.56484322,9.142e-05,2]
[329578930,1718456950780,-300.0,9.243e-05,2]
[329578931,1718456950813,-323.15828517,9.244e-05,2]
[329578932,1718456950883,-59622.46990411,9.244e-05,2]
[329578933,1718456950922,-184.54147452,9.245e-05,2]
[329578934,1718456950956,-208.16221131,9.245e-05,2]
[329578935,1718456950998,-509.0659557,9.245e-05,2]
[329578936,1718456951023,-216.66367737,9.245e-05,2]
[329578937,1718456951079,-262.27225802,9.245e-05,2]
[329578938,1718456951123,-686.04216794,9.245e-05,2]
[329578939,1718456951170,-46653.19179324,9.245e-05,2]
[329578940,1718456951200,-242.46985373,9.246e-05,2]
[329578941,1718456951258,-84.09754375,9.246e-05,2]
[329578987,1718457034818,-2570.50334685,9.246e-05,2]
[329578988,1718457034829,-300.39680964,9.249e-05,2]
[329578990,1718457034856,-2217.03004969,9.998e-05,2]
[329578991,1718457034888,-852.83100831,0.0001,2]
[329578993,1718457034912,-691.52,0.00010959,2]
[329578995,1718457034925,-2217.03004968,0.00011508,2]
[329578997,1718457034938,-413.34042153,0.00012895,2]
[329578999,1718457034950,-310.0,0.00012895,2]
[329579002,1718457034966,-156.31130542,0.00012898,2]
[329579004,1718457034993,-1343.77512204,0.00012921,2]
[329579006,1718457035041,-458.78120657,0.00012922,2]
[329579009,1718457035081,-164.71066412,0.00012922,2]
[329579011,1718457035110,-182.1080297,0.00012923,2]
[329579013,1718457035139,-216.42006283,0.00012923,2]
[329579015,1718457035155,-10547.48179918,0.00012923,2]
[329579016,1718457035165,-286.00890419,0.00012924,2]
[329579018,1718457035175,-2217.03004968,0.00013118,2]
[329579019,1718457035200,-156.31130542,0.00013598,2]
[329579021,1718457035220,-262.48427628,0.000136,2]
[329579023,1718457035260,-996.363656,0.00013699,2]
[329579025,1718457035273,-3000.0,0.00013699,2]
[329579026,1718457035306,-2217.03004968,0.00014728,2]
[329579028,1718457035334,-282.31985004,0.00014811,2]
[329579031,1718457035353,-800.67642302,0.00014811,2]
[329579033,1718457035375,-317.43695294,0.00014812,2]
[329579035,1718457035386,-6723.24875239,0.00014812,2]
[329579037,1718457035398,-155.01550155,0.00015,2]
[329579039,1718457035413,-1303.55844644,0.00015999,2]
[329579041,1718457035434,-1000.0,0.00016,6]
[329579044,1718457035461,-157.91958,0.00016164,2]
[329579047,1718457035490,-2157.56416106,0.00016336,2]
[329579049,1718457035512,-4385.93338892,0.00016337,2]
[329579052,1718457035563,-2366.76085738,0.00016337,2]
[329579055,1718457035584,-2217.03004968,0.00016338,2]
[329579056,1718457035599,-293.28699267,0.000164,2]
[329579058,1718457035610,-295.54386578,0.00016434,2]
[329579060,1718457035622,-208.48799237,0.00016435,2]
[329579061,1718457035637,-157.0195297,0.00016435,2]
[329579063,1718457035666,-155.64112098,0.00016435,2]
[329579065,1718457035677,-1514.91650437,0.00016436,2]
[329579067,1718457035712,-155.16081861,0.00016436,2]
[329579069,1718457035729,-21969.14558278,0.00016436,2]
[329579070,1718457035754,-261.97373982,0.00016436,2]
[329579073,1718457035786,-692.52993406,0.00016437,2]
[329579075,1718457035801,-17854.86989324,0.00016437,2]
[329579076,1718457035821,-500.0,0.00016438,2]
[329579077,1718457035847,-500.0,0.00016438,2]
[329579078,1718457035872,-500.0,0.00016438,2]
[329579079,1718457035898,-500.0,0.00016438,2]
[329579080,1718457035909,-500.0,0.00016438,2]
[329579081,1718457035920,-500.0,0.00016438,2]
[329579082,1718457035935,-500.0,0.00016438,2]
[329579083,1718457035949,-538.99072556,0.00016438,2]
[329579084,1718457035967,-500.0,0.00016438,2]
[329579085,1718457035978,-500.0,0.00016438,2]
[329579086,1718457036027,-500.0,0.00016438,2]
[329579087,1718457036044,-500.0,0.00016438,2]
[329579088,1718457036084,-500.0,0.00016438,2]
[329579089,1718457036096,-509.69812858,0.00016438,2]
[329579090,1718457036107,-500.0,0.00016438,2]
[329579091,1718457036128,-500.0,0.00016438,2]
[329579092,1718457036139,-500.0,0.00016438,2]
[329579093,1718457036289,-500.0,0.00016438,2]
[329579094,1718457036306,-500.0,0.00016438,2]
[329579095,1718457036329,-500.0,0.00016438,2]
[329579096,1718457036344,-505.02802939,0.00016438,2]
[329579097,1718457036357,-500.0,0.00016438,2]
[329579098,1718457036372,-500.0,0.00016438,2]
[329579099,1718457036384,-500.0,0.00016438,2]
[329579100,1718457036395,-500.0,0.00016438,2]
[329579101,1718457036413,-169.96401791,0.00016438,2]
[329579102,1718457036430,-500.0,0.00016438,2]
[329579103,1718457036453,-380.47919137,0.00016438,2]
[329579104,1718457036486,-500.0,0.00016438,2]
[329579105,1718457036531,-245.63536046,0.00016438,2]
[329579106,1718457036575,-500.0,0.00016438,2]
[329579107,1718457036601,-500.0,0.00016438,2]
[329579108,1718457036617,-491.23478438,0.00016438,2]
[329579109,1718457036630,-500.0,0.00016438,2]
[329579110,1718457036641,-605.26,0.00016438,2]
[329579111,1718457036653,-500.0,0.00016438,2]
[329579112,1718457036665,-500.0,0.00016438,2]
[329579113,1718457036680,-500.0,0.00016438,2]
[329579114,1718457036697,-500.0,0.00016438,2]
[329579115,1718457036709,-500.0,0.00016438,2]
[329579116,1718457036723,-528.09094106,0.00016438,2]
[329579117,1718457036738,-500.0,0.00016438,2]
[329579118,1718457036762,-500.0,0.00016438,2]
[329579119,1718457036794,-500.0,0.00016438,2]
[329579120,1718457036814,-500.0,0.00016438,2]
[329579121,1718457036837,-500.0,0.00016438,2]
[329579122,1718457036876,-500.0,0.00016438,2]
[329579123,1718457036911,-500.0,0.00016438,2]
[329579124,1718457036934,-500.0,0.00016438,2]
[329579125,1718457036962,-500.0,0.00016438,2]
[329579126,1718457036973,-500.0,0.00016438,2]
[329579127,1718457037000,-500.0,0.00016438,2]
[329579128,1718457037012,-500.0,0.00016438,2]
[329579129,1718457037030,-500.0,0.00016438,2]
[329579130,1718457037049,-500.0,0.00016438,2]
[329579131,1718457037074,-500.0,0.00016438,2]
[329579132,1718457037089,-500.0,0.00016438,2]
[329579133,1718457037109,-500.0,0.00016438,2]
[329579134,1718457037124,-500.0,0.00016438,2]
[329579135,1718457037139,-500.0,0.00016438,2]
[329579136,1718457037150,-500.0,0.00016438,2]
[329579137,1718457037172,-500.0,0.00016438,2]
[329579138,1718457037187,-500.0,0.00016438,2]
[329579139,1718457037199,-500.0,0.00016438,2]
[329579140,1718457037214,-177.21669797,0.00016438,2]
[329579141,1718457037227,-513.97518462,0.00016438,2]
[329579142,1718457037249,-500.0,0.00016438,2]
[329579143,1718457037270,-500.0,0.00016438,2]
[329579144,1718457037283,-500.0,0.00016438,2]
[329579145,1718457037300,-500.0,0.00016438,2]
[329579146,1718457037313,-410.67673225,0.00016438,2]
[329579147,1718457037325,-500.0,0.00016438,2]
[329579148,1718457037338,-500.0,0.00016438,2]
[329579149,1718457037369,-500.0,0.00016438,2]
[329579150,1718457037387,-509.11878235,0.00016438,2]
[329579151,1718457037403,-181.81897222,0.00016438,2]
[329579152,1718457037415,-617.69727305,0.00016438,2]
[329579153,1718457037426,-500.0,0.00016438,2]
[329579154,1718457037438,-500.0,0.00016438,2]
[329579155,1718457037497,-500.0,0.00016438,2]
[329579156,1718457037509,-500.0,0.00016438,2]
[329579157,1718457037521,-500.0,0.00016438,2]
[329579158,1718457037533,-500.0,0.00016438,2]
[329579159,1718457037548,-500.0,0.00016438,2]
[329579160,1718457037564,-500.0,0.00016438,2]
[329579161,1718457037592,-500.0,0.00016438,2]
[329579162,1718457037670,-573.83869851,0.00016438,2]
[329579163,1718457037689,-500.0,0.00016438,2]
[329579164,1718457037700,-500.0,0.00016438,2]
[329579165,1718457037713,-500.0,0.00016438,2]
[329579166,1718457037724,-500.0,0.00016438,2]
[329579167,1718457037746,-500.0,0.00016438,2]
[329579168,1718457037766,-500.0,0.00016438,2]
[329579169,1718457037786,-500.0,0.00016438,2]
[329579170,1718457037803,-506.77499244,0.00016438,2]
[329579171,1718457037836,-500.0,0.00016438,2]
[329579172,1718457037856,-500.0,0.00016438,2]
[329579173,1718457037888,-500.0,0.00016438,2]
[329579174,1718457037903,-500.0,0.00016438,2]
[329579175,1718457037944,-500.0,0.00016438,2]
[329579176,1718457037960,-500.0,0.00016438,2]
[329579177,1718457037974,-500.0,0.00016438,2]
[329579178,1718457037996,-500.0,0.00016438,2]
[329579179,1718457038007,-500.0,0.00016438,2]
[329579180,1718457038018,-500.0,0.00016438,2]
[329579181,1718457038036,-500.0,0.00016438,2]
[329579182,1718457038050,-500.0,0.00016438,2]
[329579183,1718457038063,-500.0,0.00016438,2]
[329579184,1718457038075,-500.0,0.00016438,2]
[329579185,1718457038086,-500.0,0.00016438,2]
[329579186,1718457038098,-500.0,0.00016438,2]
[329579187,1718457038112,-500.0,0.00016438,2]
[329579188,1718457038123,-500.0,0.00016438,2]
[329579189,1718457038142,-500.0,0.00016438,2]
[329579190,1718457038157,-988.79,0.00016438,2]
[329579191,1718457038184,-500.0,0.00016438,2]
[329579192,1718457038201,-500.0,0.00016438,2]
[329579193,1718457038224,-628.4215999,0.00016438,2]
[329579194,1718457038236,-500.0,0.00016438,2]
[329579195,1718457038249,-500.0,0.00016438,2]
[329579196,1718457038262,-500.0,0.00016438,2]
[329579197,1718457038276,-500.0,0.00016438,2]
[329579198,1718457038291,-500.0,0.00016438,2]
[329579199,1718457038310,-500.0,0.00016438,2]
[329579200,1718457038326,-500.0,0.00016438,2]
[329579201,1718457038344,-500.0,0.00016438,2]
[329579202,1718457038363,-506.55587308,0.00016438,2]
[329579203,1718457038374,-500.0,0.00016438,2]
[329579204,1718457038390,-500.0,0.00016438,2]
[329579205,1718457038405,-500.0,0.00016438,2]
[329579206,1718457038420,-500.0,0.00016438,2]
[329579207,1718457038448,-500.0,0.00016438,2]
[329579208,1718457038459,-500.0,0.00016438,2]
[329579209,1718457038485,-500.0,0.00016438,2]
[329579210,1718457038496,-500.0,0.00016438,2]
[329579211,1718457038507,-500.0,0.00016438,2]
[329579212,1718457038519,-521.56392222,0.00016438,2]
[329579213,1718457038533,-500.0,0.00016438,2]
[329579214,1718457038545,-500.0,0.00016438,2]
[329579215,1718457038573,-500.0,0.00016438,2]
[329579216,1718457038592,-500.0,0.00016438,2]
[329579217,1718457038603,-500.0,0.00016438,2]
[329579218,1718457038613,-500.0,0.00016438,2]
[329579219,1718457038648,-627.8,0.00016438,2]
[329579220,1718457038675,-500.0,0.00016438,2]
[329579221,1718457038703,-500.0,0.00016438,2]
[329579222,1718457038713,-500.0,0.00016438,2]
[329579223,1718457038744,-500.0,0.00016438,2]
[329579224,1718457038762,-500.0,0.00016438,2]
[329579225,1718457038774,-500.0,0.00016438,2]
[329579226,1718457038786,-500.0,0.00016438,2]
[329579227,1718457038797,-500.0,0.00016438,2]
[329579228,1718457038810,-500.0,0.00016438,2]
[329579229,1718457038821,-500.0,0.00016438,2]
[329579230,1718457038832,-500.0,0.00016438,2]
[329579231,1718457038843,-500.0,0.00016438,2]
[329579232,1718457038857,-500.0,0.00016438,2]
[329579233,1718457038870,-503.23546092,0.00016438,2]
[329579234,1718457038902,-749.79,0.00016438,2]
[329579235,1718457038924,-500.0,0.00016438,2]
[329579236,1718457038968,-500.0,0.00016438,2]
[329579237,1718457038982,-500.0,0.00016438,2]
[329579238,1718457039003,-500.0,0.00016438,2]
[329579239,1718457039020,-500.0,0.00016438,2]
[329579240,1718457039052,-500.0,0.00016438,2]
[329579241,1718457039064,-500.0,0.00016438,2]
[329579242,1718457039094,-500.0,0.00016438,2]
[329579243,1718457039184,-500.0,0.00016438,2]
[329579244,1718457039226,-500.0,0.00016438,2]
[329579245,1718457039262,-500.0,0.00016438,2]
[329579246,1718457039295,-500.0,0.00016438,2]
[329579247,1718457039331,-500.0,0.00016438,2]
[329579248,1718457039347,-504.10859024,0.00016438,2]
[329579249,1718457039362,-500.0,0.00016438,2]
[329579250,1718457039388,-500.0,0.00016438,2]
[329579251,1718457039414,-500.0,0.00016438,2]
[329579252,1718457039430,-500.0,0.00016438,2]
[329579253,1718457039444,-500.0,0.00016438,2]
[329579254,1718457039474,-500.0,0.00016438,2]
[329579255,1718457039508,-500.0,0.00016438,2]
[329579257,1718457039521,-500.0,0.00016438,2]
[329579258,1718457039556,-500.0,0.00016438,2]
[329579259,1718457039573,-564.48502844,0.00016438,2]
[329579260,1718457039584,-500.0,0.00016438,2]
[329579261,1718457039595,-178.16112142,0.00016438,2]
[329579262,1718457039613,-500.0,0.00016438,2]
[329579263,1718457039624,-500.0,0.00016438,2]
[329579264,1718457039635,-500.0,0.00016438,2]
[329579265,1718457039645,-500.0,0.00016438,2]
[329579266,1718457039663,-500.0,0.00016438,2]
[329579267,1718457039684,-500.0,0.00016438,2]
[329579268,1718457039697,-500.0,0.00016438,2]
[329579269,1718457039716,-500.0,0.00016438,2]
[329579270,1718457039731,-500.0,0.00016438,2]
[329579271,1718457039769,-500.0,0.00016438,2]
[329579273,1718457039783,-500.0,0.00016438,2]
[329579274,1718457039801,-979.32,0.00016438,2]
[329579275,1718457039816,-500.0,0.00016438,2]
[329579276,1718457039829,-500.0,0.00016438,2]
[329579277,1718457039845,-500.0,0.00016438,2]
[329579278,1718457039876,-691.64,0.00016438,2]
[329579279,1718457039889,-500.0,0.00016438,2]
[329579280,1718457039903,-500.0,0.00016438,2]
[329579281,1718457039921,-500.0,0.00016438,2]
[329579282,1718457039952,-500.0,0.00016438,2]
[329579283,1718457039973,-502.61611415,0.00016438,2]
[329579284,1718457039995,-500.0,0.00016438,2]
[329579285,1718457040012,-500.0,0.00016438,2]
[329579286,1718457040043,-500.0,0.00016438,2]
[329579287,1718457040058,-500.0,0.00016438,2]
[329579288,1718457040077,-500.0,0.00016438,2]
[329579289,1718457040112,-500.0,0.00016438,2]
[329579290,1718457040160,-500.0,0.00016438,2]
[329579291,1718457040189,-500.0,0.00016438,2]
[329579292,1718457040240,-7149.35,0.00016438,2]
[329579293,1718457040257,-500.0,0.00016438,2]
[329579294,1718457040267,-500.0,0.00016438,2]
[329579295,1718457040284,-500.0,0.00016438,2]
[329579296,1718457040325,-3618.11,0.00016438,2]
[329579297,1718457040358,-1495.0,0.00016438,2]
[329579298,1718457040420,-500.0,0.00016438,2]
[329579299,1718457040454,-500.0,0.00016438,2]
[329579300,1718457040489,-500.0,0.00016438,2]
[329579301,1718457040505,-500.0,0.00016438,2]
[329579302,1718457040516,-500.0,0.00016438,2]
[329579303,1718457040527,-599.35,0.00016438,2]
[329579304,1718457040564,-523.55392271,0.00016438,2]
[329579305,1718457040576,-4721.27,0.00016438,2]
[329579306,1718457040601,-500.0,0.00016438,2]
[329579307,1718457040621,-500.0,0.00016438,2]
[329579309,1718457040634,-593.26989627,0.00016438,2]
[329579310,1718457040684,-500.0,0.00016438,2]
[329579311,1718457040708,-500.0,0.00016438,2]
[329579312,1718457040729,-500.0,0.00016438,2]
[329579313,1718457040746,-500.0,0.00016438,2]
[329579314,1718457040776,-500.0,0.00016438,2]
[329579315,1718457040789,-500.75606427,0.00016438,2]
[329579316,1718457040817,-500.0,0.00016438,2]
[329579317,1718457040847,-1628.27,0.00016438,2]
[329579318,1718457040888,-503.43345361,0.00016438,2]
[329579319,1718457040921,-256.62269059,0.00016438,2]
[329579320,1718457040937,-500.0,0.00016438,2]
[329579321,1718457040950,-500.0,0.00016438,2]
[329579322,1718457040996,-500.0,0.00016438,2]
[329579324,1718457041008,-500.0,0.00016438,2]
[329579325,1718457041048,-500.0,0.00016438,2]
[329579326,1718457041072,-500.0,0.00016438,2]
[329579327,1718457041085,-2206.45,0.00016438,2]
[329579328,1718457041097,-542.89910287,0.00016438,2]
[329579329,1718457041109,-500.0,0.00016438,2]
[329579330,1718457041123,-512.58556728,0.00016438,2]
[329579331,1718457041134,-500.0,0.00016438,2]
[329579332,1718457041167,-257.057799,0.00016438,2]
[329579333,1718457041196,-500.0,0.00016438,2]
[329579334,1718457041216,-504.78823078,0.00016438,2]
[329579335,1718457041229,-500.0,0.00016438,2]
[329579336,1718457041245,-257.057799,0.00016438,2]
[329579337,1718457041259,-500.0,0.00016438,2]
[329579338,1718457041279,-540.3795066,0.00016438,2]
[329579340,1718457041298,-500.0,0.00016438,2]
[329579341,1718457041321,-500.0,0.00016438,2]
[329579342,1718457041348,-504.13,0.00016438,2]
[329579343,1718457041372,-500.0,0.00016438,2]
[329579344,1718457041390,-500.0,0.00016438,2]
[329579345,1718457041406,-566.79489092,0.00016438,2]
[329579346,1718457041430,-500.0,0.00016438,2]
[329579347,1718457041458,-5259.6,0.00016438,2]
[329579348,1718457041492,-500.0,0.00016438,2]
[329579350,1718457041504,-500.0,0.00016438,2]
[329579351,1718457041528,-500.0,0.00016438,2]
[329579352,1718457041539,-500.0,0.00016438,2]
[329579353,1718457041572,-500.0,0.00016438,2]
[329579354,1718457041597,-500.0,0.00016438,2]
[329579355,1718457041618,-500.0,0.00016438,2]
[329579356,1718457041638,-500.0,0.00016438,2]
[329579357,1718457041664,-504.52217501,0.00016438,2]
[329579358,1718457041675,-500.0,0.00016438,2]
[329579359,1718457041701,-500.0,0.00016438,2]
[329579360,1718457041727,-577.94,0.00016438,2]
[329579361,1718457041764,-591.98,0.00016438,2]
[329579362,1718457041788,-500.0,0.00016438,2]
[329579363,1718457041811,-1143.24,0.00016438,2]
[329579364,1718457041832,-500.0,0.00016438,2]
[329579365,1718457041850,-500.0,0.00016438,2]
[329579366,1718457041864,-500.0,0.00016438,2]
[329579367,1718457041894,-500.89927424,0.00016438,2]
[329579368,1718457041935,-500.0,0.00016438,2]
[329579369,1718457041971,-500.0,0.00016438,2]
[329579370,1718457042016,-500.0,0.00016438,2]
[329579371,1718457042060,-500.0,0.00016438,2]
[329579372,1718457042087,-500.0,0.00016438,2]
[329579373,1718457042201,-500.0,0.00016438,2]
[329579375,1718457042214,-500.0,0.00016438,2]
[329579376,1718457042244,-500.0,0.00016438,2]
[329579377,1718457042264,-500.0,0.00016438,2]
[329579378,1718457042276,-500.0,0.00016438,2]
[329579379,1718457042313,-500.0,0.00016438,2]
[329579380,1718457042328,-500.0,0.00016438,2]
[329579381,1718457042350,-500.0,0.00016438,2]
[329579382,1718457042394,-1488.37,0.00016438,2]
[329579383,1718457042425,-500.0,0.00016438,2]
[329579384,1718457042464,-500.0,0.00016438,2]
[329579385,1718457042475,-500.0,0.00016438,2]
[329579386,1718457042504,-500.0,0.00016438,2]
[329579387,1718457042515,-500.0,0.00016438,2]
[329579388,1718457042532,-500.0,0.00016438,2]
[329579389,1718457042544,-500.0,0.00016438,2]
[329579390,1718457042555,-500.0,0.00016438,2]
[329579391,1718457042576,-500.0,0.00016438,2]
[329579392,1718457042591,-989.9,0.00016438,2]
[329579393,1718457042603,-500.0,0.00016438,2]
[329579394,1718457042615,-500.0,0.00016438,2]
[329579395,1718457042665,-500.0,0.00016438,2]
[329579396,1718457042687,-500.0,0.00016438,2]
[329579397,1718457042721,-500.0,0.00016438,2]
[329579398,1718457042745,-500.0,0.00016438,2]
[329579399,1718457042764,-500.0,0.00016438,2]
[329579400,1718457042775,-500.0,0.00016438,2]
[329579401,1718457042794,-500.0,0.00016438,2]
[329579402,1718457042853,-584.32,0.00016438,2]
[329579403,1718457042872,-435.65568737,0.00016438,2]
[329579404,1718457042892,-669.041635,0.00016438,2]
[329579405,1718457042932,-669.041635,0.00016438,2]
[329579406,1718457042945,-669.041635,0.00016438,2]
[329579407,1718457042976,-669.041635,0.00016438,2]
[329579408,1718457043001,-155.0,0.0001648,2]
[329579409,1718457043013,-375.24763601,0.000165,2]
[329579410,1718457043032,-500.0,0.000165,2]
[329579411,1718457043044,-300.0,0.000165,2]
[329579412,1718457043055,-257.057799,0.000165,2]
[329579413,1718457043067,-257.057799,0.000165,2]
[329579414,1718457043094,-594.0,0.000166,2]
[329579415,1718457043124,-620.00667111,0.00016664,2]
[329579416,1718457043153,-455.24143609,0.00016712,2]
[329579417,1718457043189,-500.0,0.00016712,2]
[329579418,1718457043215,-605.26,0.00016712,2]
[329579419,1718457043227,-500.0,0.00016712,2]
[329579420,1718457043240,-500.0,0.00016712,2]
[329579421,1718457043268,-500.0,0.00016712,2]
[329579422,1718457043304,-500.0,0.00016712,2]
[329579423,1718457043321,-500.0,0.00016712,2]
[329579424,1718457043335,-500.0,0.00016712,2]
[329579425,1718457043364,-500.0,0.00016712,2]
[329579426,1718457043389,-500.0,0.00016712,2]
[329579428,1718457043406,-500.0,0.00016712,2]
[329579430,1718457043419,-500.0,0.00016712,2]
[329579431,1718457043472,-500.0,0.00016712,2]
[329579432,1718457043484,-500.0,0.00016712,2]
[329579433,1718457043502,-500.0,0.00016712,2]
[329579434,1718457043547,-500.0,0.00016712,2]
[329579435,1718457043576,-500.0,0.00016712,2]
[329579436,1718457043588,-517.79627213,0.00016712,2]
[329579437,1718457043605,-537.53640815,0.00016712,2]
[329579438,1718457043616,-500.0,0.00016712,2]
[329579441,1718457043636,-500.0,0.00016712,2]
[329579443,1718457043647,-234.85173378,0.00016712,2]
[329579446,1718457043665,-500.0,0.00016712,2]
[329579448,1718457043692,-500.0,0.00016712,2]
[329579450,1718457043706,-500.0,0.00016712,2]
[329579451,1718457043718,-501.86979201,0.00016712,2]
[329579452,1718457043761,-500.0,0.00016712,2]
[329579453,1718457043779,-500.0,0.00016712,2]
[329579454,1718457043791,-490.41813866,0.00016712,2]
[329579455,1718457043802,-500.0,0.00016712,2]
[329579456,1718457043814,-500.0,0.00016712,2]
[329579458,1718457043851,-500.0,0.00016712,2]
[329579459,1718457043874,-500.0,0.00016712,2]
[329579461,1718457043904,-500.0,0.00016712,2]
[329579463,1718457043922,-415.54635282,0.00016712,2]
[329579465,1718457043936,-988.79,0.00016712,2]
[329579466,1718457043964,-500.0,0.00016712,2]
[329579467,1718457043977,-500.0,0.00016712,2]
[329579468,1718457044007,-500.0,0.00016712,2]
[329579470,1718457044034,-500.0,0.00016712,2]
[329579471,1718457044086,-500.0,0.00016712,2]
[329579472,1718457044119,-500.0,0.00016712,2]
[329579473,1718457044144,-502.64991484,0.00016712,2]
[329579474,1718457044169,-500.0,0.00016712,2]
[329579475,1718457044196,-500.0,0.00016712,2]
[329579476,1718457044209,-500.0,0.00016712,2]
[329579477,1718457044221,-500.0,0.00016712,2]
[329579478,1718457044233,-527.48937512,0.00016712,2]
[329579479,1718457044245,-500.0,0.00016712,2]
[329579480,1718457044265,-500.0,0.00016712,2]
[329579481,1718457044293,-503.19938565,0.00016712,2]
[329579482,1718457044325,-500.0,0.00016712,2]
[329579483,1718457044338,-627.8,0.00016712,2]
[329579484,1718457044351,-500.0,0.00016712,2]
[329579485,1718457044381,-501.72311125,0.00016712,2]
[329579486,1718457044395,-500.0,0.00016712,2]
[329579487,1718457044434,-500.0,0.00016712,2]